[Event "Late-Titled-Tuesday-Blitz-April-30-2024"]
[Site "Chess.com"]
[Date "2024.04.30"]
[Round "1"]
[White "KChor05"]
[Black "klercaku"]
[Result "1-0"]
[WhiteElo "2603"]
[BlackElo "2259"]
[TimeControl "180+1"]
[EndTime "14:07:08 PDT"]
[Termination "KChor05 won by resignation"]

1. e4 {[%clk 0:02:59.8]} 1... e5 {[%clk 0:02:59.9]} 2. Nf3 {[%clk 0:02:59.4]}
2... Nc6 {[%clk 0:02:59.6]} 3. d4 {[%clk 0:02:59.2]} 3... exd4 {[%clk
0:02:58.8]} 4. Bc4 {[%clk 0:02:58.9]} 4... Be7 {[%clk 0:02:58.1]} 5. O-O {[%clk
0:02:53.3]} 5... d6 {[%clk 0:02:55.9]} 6. Nxd4 {[%clk 0:02:42.1]} 6... Nf6
{[%clk 0:02:55.5]} 7. Nc3 {[%clk 0:02:41.1]} 7... O-O {[%clk 0:02:54.7]} 8. h3
{[%clk 0:02:37.7]} 8... a6 {[%clk 0:02:54.1]} 9. Bg5 {[%clk 0:02:36.9]} 9... h6
{[%clk 0:02:51.5]} 10. Bf4 {[%clk 0:02:29]} 10... Ne5 {[%clk 0:02:46.3]} 11. Bb3
{[%clk 0:02:24.9]} 11... c5 {[%clk 0:02:22.2]} 12. Nf5 {[%clk 0:02:09.9]} 12...
Bxf5 {[%clk 0:02:13]} 13. exf5 {[%clk 0:02:08.9]} 13... Qc8 {[%clk 0:01:54.6]}
14. Nd5 {[%clk 0:01:49.7]} 14... Nxd5 {[%clk 0:01:40.3]} 15. Bxd5 {[%clk
0:01:49.6]} 15... Qxf5 {[%clk 0:01:39.6]} 16. Bg3 {[%clk 0:01:44.3]} 16... Rab8
{[%clk 0:01:31.6]} 17. f4 {[%clk 0:01:43.1]} 17... Ng6 {[%clk 0:01:28.2]} 18. c4
{[%clk 0:01:41]} 18... Bf6 {[%clk 0:01:25.8]} 19. Rb1 {[%clk 0:01:41.1]} 19...
Bd4+ {[%clk 0:01:25.4]} 20. Kh1 {[%clk 0:01:40.2]} 20... b5 {[%clk 0:01:22.7]}
21. b3 {[%clk 0:01:36.5]} 21... Rb6 {[%clk 0:01:15.4]} 22. Bh2 {[%clk
0:01:34.9]} 22... h5 {[%clk 0:01:12.4]} 23. g4 {[%clk 0:01:33.6]} 23... hxg4
{[%clk 0:01:09.1]} 24. hxg4 {[%clk 0:01:34.5]} 24... Qf6 {[%clk 0:01:00.9]} 25.
Qd3 {[%clk 0:01:34.3]} 25... bxc4 {[%clk 0:00:53.5]} 26. bxc4 {[%clk 0:01:29.8]}
26... Rxb1 {[%clk 0:00:49.7]} 27. Qxb1 {[%clk 0:01:23.3]} 27... Qh4 {[%clk
0:00:43]} 28. Qxg6 {[%clk 0:01:20.7]} 28... Qh3 {[%clk 0:00:38.6]} 29. Re1
{[%clk 0:01:02.7]} 29... Qh4 {[%clk 0:00:32.5]} 30. Re8 {[%clk 0:00:47]} 30...
Rxe8 {[%clk 0:00:14.7]} 31. Qxf7+ {[%clk 0:00:46.8]} 31... Kh7 {[%clk
0:00:14.2]} 32. Qxe8 {[%clk 0:00:47.1]} 32... Qxg4 {[%clk 0:00:09.8]} 33. Qe4+
{[%clk 0:00:40.5]} 33... g6 {[%clk 0:00:04.3]} 34. Qf3 {[%clk 0:00:36.3]} 34...
Qf5 {[%clk 0:00:03.4]} 35. Be4 {[%clk 0:00:35.9]} 35... Qf6 {[%clk 0:00:02.6]}
36. f5 {[%clk 0:00:35.4]} 36... g5 {[%clk 0:00:02.6]} 37. Qh5+ {[%clk
0:00:35.2]} 37... Kg7 {[%clk 0:00:02.9]} 38. Qg6+ {[%clk 0:00:36.1]} 38... Qxg6
{[%clk 0:00:03.3]} 39. fxg6 {[%clk 0:00:37]} 39... Be5 {[%clk 0:00:03.4]} 40.
Bxe5+ {[%clk 0:00:36.8]} 40... dxe5 {[%clk 0:00:03.5]} 41. Kg2 {[%clk
0:00:36.6]} 41... Kf6 {[%clk 0:00:03.2]} 42. Kf3 {[%clk 0:00:37.1]} 42... Kg7
{[%clk 0:00:03.1]} 43. Kg4 {[%clk 0:00:38]} 43... Kf6 {[%clk 0:00:02.8]} 44. a3
{[%clk 0:00:37.7]} 44... a5 {[%clk 0:00:02.8]} 45. a4 {[%clk 0:00:38.2]} 45...
Kg7 {[%clk 0:00:02.8]} 46. Kxg5 {[%clk 0:00:38.8]} 1-0

[Event "Late-Titled-Tuesday-Blitz-April-30-2024"]
[Site "Chess.com"]
[Date "2024.04.30"]
[Round "1"]
[White "oskariot"]
[Black "Kopytkin"]
[Result "1-0"]
[WhiteElo "2734"]
[BlackElo "2418"]
[TimeControl "180+1"]
[EndTime "14:07:11 PDT"]
[Termination "oskariot won on time"]

1. e4 {[%clk 0:03:00.7]} 1... Nf6 {[%clk 0:02:57.3]} 2. e5 {[%clk 0:03:00]} 2...
Nd5 {[%clk 0:02:57.5]} 3. d4 {[%clk 0:03:00.9]} 3... d6 {[%clk 0:02:57.2]} 4.
Nf3 {[%clk 0:03:01.7]} 4... g6 {[%clk 0:02:56.7]} 5. Bc4 {[%clk 0:03:01.9]} 5...
Nb6 {[%clk 0:02:57]} 6. Bb3 {[%clk 0:03:02.6]} 6... d5 {[%clk 0:02:57.4]} 7. h3
{[%clk 0:03:00]} 7... Bg7 {[%clk 0:02:57.5]} 8. O-O {[%clk 0:03:00.4]} 8... Nc6
{[%clk 0:02:55.5]} 9. c3 {[%clk 0:02:57.4]} 9... f6 {[%clk 0:02:56.1]} 10. exf6
{[%clk 0:02:50.9]} 10... exf6 {[%clk 0:02:57]} 11. Re1+ {[%clk 0:02:50.6]} 11...
Kf7 {[%clk 0:02:57.2]} 12. Bf4 {[%clk 0:02:39.1]} 12... Be6 {[%clk 0:02:46.2]}
13. Na3 {[%clk 0:02:31.1]} 13... Qd7 {[%clk 0:02:30.4]} 14. Qd2 {[%clk 0:02:04]}
14... Rhe8 {[%clk 0:02:27.8]} 15. Re3 {[%clk 0:01:58.8]} 15... Na5 {[%clk
0:02:27.3]} 16. Rae1 {[%clk 0:01:57.9]} 16... c6 {[%clk 0:01:49]} 17. g4 {[%clk
0:01:41.9]} 17... Nbc4 {[%clk 0:01:19.3]} 18. Nxc4 {[%clk 0:01:38]} 18... Nxc4
{[%clk 0:01:20.2]} 19. Bxc4 {[%clk 0:01:37.5]} 19... dxc4 {[%clk 0:01:21.1]} 20.
Bg3 {[%clk 0:01:06.9]} 20... Bd5 {[%clk 0:01:13.9]} 21. Rxe8 {[%clk 0:00:51.3]}
21... Rxe8 {[%clk 0:01:10.7]} 22. Rxe8 {[%clk 0:00:51.3]} 22... Qxe8 {[%clk
0:01:01.2]} 23. Qf4 {[%clk 0:00:52.2]} 23... Qe7 {[%clk 0:00:38.9]} 24. g5
{[%clk 0:00:45.1]} 24... Bxf3 {[%clk 0:00:23.1]} 25. Qxf3 {[%clk 0:00:43.8]}
25... f5 {[%clk 0:00:18.9]} 26. d5 {[%clk 0:00:43.7]} 26... Qe1+ {[%clk
0:00:12.7]} 27. Kh2 {[%clk 0:00:42.5]} 27... Qe4 {[%clk 0:00:13]} 28. Qxe4
{[%clk 0:00:36.1]} 28... fxe4 {[%clk 0:00:13.9]} 29. dxc6 {[%clk 0:00:28.9]}
29... bxc6 {[%clk 0:00:14.8]} 30. Kg2 {[%clk 0:00:26.9]} 30... Ke6 {[%clk
0:00:15]} 31. f3 {[%clk 0:00:26.6]} 31... Kf5 {[%clk 0:00:15.1]} 32. h4 {[%clk
0:00:26.2]} 32... Bf8 {[%clk 0:00:14.6]} 33. Kf2 {[%clk 0:00:25.7]} 33... Bc5+
{[%clk 0:00:14.8]} 34. Ke2 {[%clk 0:00:26.2]} 34... a6 {[%clk 0:00:10.6]} 35. b3
{[%clk 0:00:25.5]} 35... a5 {[%clk 0:00:08]} 36. Bc7 {[%clk 0:00:17.1]} 1-0

[Event "Late-Titled-Tuesday-Blitz-April-30-2024"]
[Site "Chess.com"]
[Date "2024.04.30"]
[Round "1"]
[White "jaramsdal"]
[Black "Romkachess"]
[Result "1-0"]
[WhiteElo "2382"]
[BlackElo "2648"]
[TimeControl "180+1"]
[EndTime "14:07:11 PDT"]
[Termination "jaramsdal won by resignation"]

1. e4 {[%clk 0:03:00.2]} 1... c5 {[%clk 0:02:54.5]} 2. a3 {[%clk 0:02:58.6]}
2... d5 {[%clk 0:02:47.3]} 3. exd5 {[%clk 0:02:57.6]} 3... Nf6 {[%clk
0:02:45.1]} 4. Bb5+ {[%clk 0:02:49.2]} 4... Bd7 {[%clk 0:02:43.6]} 5. Bc4 {[%clk
0:02:49.5]} 5... g6 {[%clk 0:02:25.3]} 6. Nc3 {[%clk 0:02:48.8]} 6... Bg7 {[%clk
0:02:25.9]} 7. Nf3 {[%clk 0:02:45.5]} 7... O-O {[%clk 0:02:25.7]} 8. O-O {[%clk
0:02:45.4]} 8... a6 {[%clk 0:02:25.1]} 9. a4 {[%clk 0:02:41.3]} 9... Bg4 {[%clk
0:02:16.3]} 10. h3 {[%clk 0:02:40.8]} 10... Bf5 {[%clk 0:02:02.4]} 11. d4 {[%clk
0:02:32.1]} 11... Nbd7 {[%clk 0:01:56.7]} 12. Be3 {[%clk 0:02:29.9]} 12... Rc8
{[%clk 0:01:54.2]} 13. b3 {[%clk 0:01:59.2]} 13... Ne8 {[%clk 0:01:41.5]} 14. g4
{[%clk 0:01:53.2]} 14... Nd6 {[%clk 0:01:12.1]} 15. gxf5 {[%clk 0:01:42.2]}
15... Nxf5 {[%clk 0:01:13]} 16. Qd2 {[%clk 0:01:42.5]} 16... Qc7 {[%clk
0:00:55.2]} 17. Bf4 {[%clk 0:01:30.1]} 17... Qa5 {[%clk 0:00:49.8]} 18. Ne4
{[%clk 0:01:29.8]} 18... Qd8 {[%clk 0:00:46.1]} 19. c3 {[%clk 0:01:19.8]} 19...
h6 {[%clk 0:00:42.3]} 20. dxc5 {[%clk 0:01:03.2]} 20... g5 {[%clk 0:00:30.4]}
21. Be3 {[%clk 0:01:01.2]} 21... Re8 {[%clk 0:00:18.8]} 22. Nd4 {[%clk
0:00:59.2]} 22... Nh4 {[%clk 0:00:17.3]} 23. f4 {[%clk 0:00:48.1]} 23... f6
{[%clk 0:00:15.9]} 24. Ne6 {[%clk 0:00:46.1]} 24... Qa5 {[%clk 0:00:14.1]} 25.
b4 {[%clk 0:00:46.4]} 25... Nxc5 {[%clk 0:00:04.7]} 26. N4xc5 {[%clk 0:00:38.9]}
26... Qb6 {[%clk 0:00:01.5]} 27. d6 {[%clk 0:00:38.6]} 27... Qxd6 {[%clk
0:00:02.4]} 28. Nxg5+ {[%clk 0:00:32]} 28... Kh8 {[%clk 0:00:01.6]} 29. Nf7+
{[%clk 0:00:31.9]} 29... Kh7 {[%clk 0:00:02.5]} 30. Nxd6 {[%clk 0:00:31.9]}
30... exd6 {[%clk 0:00:03.4]} 31. Qxd6 {[%clk 0:00:31.8]} 31... Rg8 {[%clk
0:00:04.1]} 32. Kh2 {[%clk 0:00:29.6]} 32... f5 {[%clk 0:00:05]} 33. Bxg8+
{[%clk 0:00:28]} 33... Rxg8 {[%clk 0:00:04.7]} 34. Rf2 {[%clk 0:00:25]} 34...
Bxc3 {[%clk 0:00:04.1]} 35. Rg1 {[%clk 0:00:22.4]} 35... Rxg1 {[%clk 0:00:03.2]}
36. Kxg1 {[%clk 0:00:23.3]} 36... Be1 {[%clk 0:00:03.3]} 37. Rg2 {[%clk
0:00:22.3]} 37... Nf3+ {[%clk 0:00:02.9]} 38. Kh1 {[%clk 0:00:22.4]} 1-0

[Event "Late-Titled-Tuesday-Blitz-April-30-2024"]
[Site "Chess.com"]
[Date "2024.04.30"]
[Round "1"]
[White "martinmena"]
[Black "rhungaski"]
[Result "0-1"]
[WhiteElo "2121"]
[BlackElo "2557"]
[TimeControl "180+1"]
[EndTime "14:07:13 PDT"]
[Termination "rhungaski won by checkmate"]

1. c4 {[%clk 0:02:15.3]} 1... g6 {[%clk 0:02:57.9]} 2. g3 {[%clk 0:02:12]} 2...
Bg7 {[%clk 0:02:57.2]} 3. Bg2 {[%clk 0:02:10.2]} 3... d6 {[%clk 0:02:57.4]} 4.
Nc3 {[%clk 0:02:10.8]} 4... Nf6 {[%clk 0:02:55.8]} 5. d3 {[%clk 0:02:11.3]} 5...
O-O {[%clk 0:02:55.1]} 6. e4 {[%clk 0:02:10.1]} 6... e5 {[%clk 0:02:54.7]} 7. h3
{[%clk 0:02:07.7]} 7... a5 {[%clk 0:02:52.8]} 8. Bg5 {[%clk 0:02:07.7]} 8... h6
{[%clk 0:02:52.4]} 9. Be3 {[%clk 0:02:07.5]} 9... c6 {[%clk 0:02:45.6]} 10. Nge2
{[%clk 0:02:06.2]} 10... Be6 {[%clk 0:02:06.8]} 11. Qd2 {[%clk 0:02:03.8]} 11...
Kh7 {[%clk 0:01:57.1]} 12. O-O {[%clk 0:02:00.7]} 12... d5 {[%clk 0:01:49.1]}
13. cxd5 {[%clk 0:01:24]} 13... cxd5 {[%clk 0:01:50]} 14. exd5 {[%clk 0:01:20]}
14... Nxd5 {[%clk 0:01:50.9]} 15. Nb5 {[%clk 0:01:09.7]} 15... Nxe3 {[%clk
0:01:36.9]} 16. Qxe3 {[%clk 0:00:39]} 16... Nc6 {[%clk 0:01:37]} 17. Rfd1 {[%clk
0:00:39.1]} 17... Qe7 {[%clk 0:01:19.1]} 18. d4 {[%clk 0:00:34]} 18... exd4
{[%clk 0:01:12.7]} 19. Nexd4 {[%clk 0:00:31.3]} 19... Bc4 {[%clk 0:00:56.3]} 20.
Nxc6 {[%clk 0:00:17.8]} 20... Qxe3 {[%clk 0:00:53.3]} 21. fxe3 {[%clk
0:00:18.7]} 21... bxc6 {[%clk 0:00:53.2]} 22. Bxc6 {[%clk 0:00:19.6]} 22... Ra6
{[%clk 0:00:43.8]} 23. Bd7 {[%clk 0:00:11.9]} 23... Bxb2 {[%clk 0:00:37.5]} 24.
Rab1 {[%clk 0:00:11.7]} 24... Be5 {[%clk 0:00:37.2]} 25. Nd4 {[%clk 0:00:11.7]}
25... Bxa2 {[%clk 0:00:31.1]} 26. Ra1 {[%clk 0:00:10.4]} 26... Bc4 {[%clk
0:00:29.5]} 27. Kf2 {[%clk 0:00:09.7]} 27... Rb8 {[%clk 0:00:24.1]} 28. Nc6
{[%clk 0:00:08.6]} 28... Rb2+ {[%clk 0:00:22.2]} 29. Kg1 {[%clk 0:00:05.2]}
29... Bxg3 {[%clk 0:00:21.7]} 30. e4 {[%clk 0:00:02.6]} 30... Be2 {[%clk
0:00:19.1]} 31. Rdc1 {[%clk 0:00:01.8]} 31... Bf3 {[%clk 0:00:17.1]} 32. Rcb1
{[%clk 0:00:01.2]} 32... Rg2+ {[%clk 0:00:15.5]} 33. Kf1 {[%clk 0:00:01.8]}
33... Rh2 {[%clk 0:00:14.5]} 34. Kg1 {[%clk 0:00:01.8]} 34... Rh1# {[%clk
0:00:14.7]} 0-1

[Event "Late-Titled-Tuesday-Blitz-April-30-2024"]
[Site "Chess.com"]
[Date "2024.04.30"]
[Round "1"]
[White "sansanathalia"]
[Black "Sl4werThanYou"]
[Result "0-1"]
[WhiteElo "2447"]
[BlackElo "2808"]
[TimeControl "180+1"]
[EndTime "14:07:16 PDT"]
[Termination "Sl4werThanYou won on time"]

1. d4 {[%clk 0:02:56.6]} 1... Nf6 {[%clk 0:02:56.4]} 2. Nd2 {[%clk 0:02:54.2]}
2... d5 {[%clk 0:02:52.2]} 3. e3 {[%clk 0:02:53.5]} 3... g6 {[%clk 0:02:47.5]}
4. Bd3 {[%clk 0:02:52.7]} 4... Bg7 {[%clk 0:02:47.9]} 5. Ngf3 {[%clk 0:02:52.8]}
5... O-O {[%clk 0:02:48.8]} 6. O-O {[%clk 0:02:52.6]} 6... c5 {[%clk 0:02:49.5]}
7. b3 {[%clk 0:02:52.2]} 7... Nc6 {[%clk 0:02:48.7]} 8. Bb2 {[%clk 0:02:52.2]}
8... cxd4 {[%clk 0:02:49.4]} 9. exd4 {[%clk 0:02:51.8]} 9... Bg4 {[%clk
0:02:50]} 10. h3 {[%clk 0:02:51]} 10... Bxf3 {[%clk 0:02:50.5]} 11. Nxf3 {[%clk
0:02:50.6]} 11... Rc8 {[%clk 0:02:51.4]} 12. a3 {[%clk 0:02:48.9]} 12... Ne4
{[%clk 0:02:48]} 13. Qe2 {[%clk 0:02:46.4]} 13... f5 {[%clk 0:02:47.6]} 14. Rad1
{[%clk 0:02:44.6]} 14... e6 {[%clk 0:02:46.9]} 15. c4 {[%clk 0:02:42.8]} 15...
Kh8 {[%clk 0:02:46.3]} 16. b4 {[%clk 0:02:40.5]} 16... Qf6 {[%clk 0:02:37.2]}
17. Ne5 {[%clk 0:02:38.2]} 17... Rfd8 {[%clk 0:02:31.2]} 18. cxd5 {[%clk
0:02:25.8]} 18... exd5 {[%clk 0:02:20.4]} 19. Nxc6 {[%clk 0:02:23.2]} 19... Rxc6
{[%clk 0:02:18.1]} 20. Rc1 {[%clk 0:02:18.2]} 20... Rdc8 {[%clk 0:02:16.5]} 21.
Rxc6 {[%clk 0:02:16.8]} 21... Rxc6 {[%clk 0:02:17.4]} 22. f3 {[%clk 0:02:09.5]}
22... Nc3 {[%clk 0:02:08]} 23. Qe8+ {[%clk 0:01:54.1]} 23... Qf8 {[%clk
0:01:19.3]} 24. Qxf8+ {[%clk 0:01:05.5]} 24... Bxf8 {[%clk 0:01:20.2]} 25. Re1
{[%clk 0:00:40.1]} 25... Kg8 {[%clk 0:01:08.2]} 26. Re8 {[%clk 0:00:23.6]} 26...
Na4 {[%clk 0:00:59.3]} 27. Bb5 {[%clk 0:00:18.2]} 27... Nxb2 {[%clk 0:00:59.6]}
28. Bxc6 {[%clk 0:00:17.9]} 28... bxc6 {[%clk 0:01:00.5]} 29. Ra8 {[%clk
0:00:17.3]} 29... Kf7 {[%clk 0:00:52.1]} 30. Rxa7+ {[%clk 0:00:17.1]} 30... Ke6
{[%clk 0:00:52.8]} 31. Rxh7 {[%clk 0:00:16.2]} 31... Nc4 {[%clk 0:00:53]} 32.
Ra7 {[%clk 0:00:15.2]} 32... Be7 {[%clk 0:00:51.9]} 33. Ra6 {[%clk 0:00:12.8]}
33... Kd7 {[%clk 0:00:49.8]} 34. Ra7+ {[%clk 0:00:13.1]} 34... Kd6 {[%clk
0:00:50.4]} 35. a4 {[%clk 0:00:12.1]} 35... Bf6 {[%clk 0:00:50.4]} 36. Kh1
{[%clk 0:00:12.5]} 36... Bxd4 {[%clk 0:00:50.3]} 37. Rh7 {[%clk 0:00:11.5]}
37... f4 {[%clk 0:00:42.8]} 38. Rh6 {[%clk 0:00:10.9]} 38... Ne5 {[%clk
0:00:42.9]} 39. Rh8 {[%clk 0:00:06.7]} 39... Be3 {[%clk 0:00:36.9]} 40. Rf8
{[%clk 0:00:05.9]} 40... d4 {[%clk 0:00:37]} 41. b5 {[%clk 0:00:05.3]} 41... d3
{[%clk 0:00:37.9]} 42. Rd8+ {[%clk 0:00:03.7]} 42... Kc7 {[%clk 0:00:37.8]} 43.
Rg8 {[%clk 0:00:01.1]} 43... d2 {[%clk 0:00:37.8]} 44. Rg7+ {[%clk 0:00:01.5]}
44... Kb6 {[%clk 0:00:37.9]} 0-1

[Event "Late-Titled-Tuesday-Blitz-April-30-2024"]
[Site "Chess.com"]
[Date "2024.04.30"]
[Round "1"]
[White "Iskusnyh"]
[Black "AsaHoffmann"]
[Result "1-0"]
[WhiteElo "2626"]
[BlackElo "2313"]
[TimeControl "180+1"]
[EndTime "14:07:18 PDT"]
[Termination "Iskusnyh won on time"]

1. d4 {[%clk 0:03:00.4]} 1... Nf6 {[%clk 0:02:51.4]} 2. c4 {[%clk 0:02:58.8]}
2... c5 {[%clk 0:02:50.1]} 3. d5 {[%clk 0:02:58.5]} 3... e5 {[%clk 0:02:49.5]}
4. Nc3 {[%clk 0:02:57.4]} 4... d6 {[%clk 0:02:49.5]} 5. e4 {[%clk 0:02:56.9]}
5... Be7 {[%clk 0:02:49.2]} 6. g3 {[%clk 0:02:55.7]} 6... O-O {[%clk 0:02:48.2]}
7. Bg2 {[%clk 0:02:56.1]} 7... Na6 {[%clk 0:02:48]} 8. Nf3 {[%clk 0:02:54.8]}
8... Ne8 {[%clk 0:02:44.2]} 9. O-O {[%clk 0:02:52.4]} 9... f5 {[%clk 0:02:44.1]}
10. exf5 {[%clk 0:02:50.8]} 10... Bxf5 {[%clk 0:02:43.7]} 11. Nd2 {[%clk
0:02:36.2]} 11... Bg5 {[%clk 0:02:39.5]} 12. Be4 {[%clk 0:02:17.9]} 12... Qd7
{[%clk 0:02:34.6]} 13. Bxf5 {[%clk 0:02:09.2]} 13... Qxf5 {[%clk 0:02:33.7]} 14.
Nde4 {[%clk 0:02:09.1]} 14... Bxc1 {[%clk 0:02:28]} 15. Rxc1 {[%clk 0:02:10]}
15... Nac7 {[%clk 0:02:21.1]} 16. f4 {[%clk 0:02:04.6]} 16... Rd8 {[%clk
0:01:48.5]} 17. fxe5 {[%clk 0:01:32.1]} 17... Qxe5 {[%clk 0:01:34.7]} 18. Rxf8+
{[%clk 0:01:31.3]} 18... Kxf8 {[%clk 0:01:34.6]} 19. Qd3 {[%clk 0:01:31.1]}
19... Kg8 {[%clk 0:01:25.7]} 20. Rf1 {[%clk 0:01:30.4]} 20... Nf6 {[%clk
0:01:17.9]} 21. Nxf6+ {[%clk 0:01:29.6]} 21... gxf6 {[%clk 0:01:17.9]} 22. Rf4
{[%clk 0:01:05.2]} 22... Ne8 {[%clk 0:01:12.4]} 23. Re4 {[%clk 0:01:00.6]} 23...
Qg5 {[%clk 0:01:10]} 24. Re7 {[%clk 0:00:54.2]} 24... Qc1+ {[%clk 0:00:58.3]}
25. Kg2 {[%clk 0:00:49.9]} 25... Qxb2+ {[%clk 0:00:43.3]} 26. Kh3 {[%clk
0:00:49.8]} 26... Ng7 {[%clk 0:00:41.2]} 27. Qf3 {[%clk 0:00:38.8]} 27... f5
{[%clk 0:00:06.3]} 28. Qe3 {[%clk 0:00:27.6]} 28... Rf8 {[%clk 0:00:03.8]} 29.
Rd7 {[%clk 0:00:15.5]} 29... Rf7 {[%clk 0:00:01.2]} 30. Rd8+ {[%clk 0:00:11.8]}
30... Rf8 {[%clk 0:00:01]} 31. Rd7 {[%clk 0:00:11.9]} 31... Rf7 {[%clk
0:00:01.1]} 32. Rxd6 {[%clk 0:00:12.1]} 32... Qc2 {[%clk 0:00:00.3]} 33. Rd8+
{[%clk 0:00:10.4]} 33... Rf8 {[%clk 0:00:00.1]} 34. Rd7 {[%clk 0:00:09.6]} 34...
Rf7 {[%clk 0:00:00.1]} 35. Rd8+ {[%clk 0:00:09.9]} 35... Rf8 {[%clk 0:00:00.3]}
36. Rxf8+ {[%clk 0:00:10.7]} 36... Kxf8 {[%clk 0:00:00.3]} 37. Qxc5+ {[%clk
0:00:11.6]} 1-0

[Event "Late-Titled-Tuesday-Blitz-April-30-2024"]
[Site "Chess.com"]
[Date "2024.04.30"]
[Round "1"]
[White "NikitaShnadrygin"]
[Black "sassassasss"]
[Result "1-0"]
[WhiteElo "2676"]
[BlackElo "2383"]
[TimeControl "180+1"]
[EndTime "14:07:20 PDT"]
[Termination "NikitaShnadrygin won by resignation"]

1. e4 {[%clk 0:03:00.9]} 1... Nc6 {[%clk 0:02:58.8]} 2. d4 {[%clk 0:02:58.3]}
2... d6 {[%clk 0:02:58.7]} 3. Nc3 {[%clk 0:02:57.1]} 3... Nf6 {[%clk 0:02:59]}
4. f3 {[%clk 0:02:56.1]} 4... e5 {[%clk 0:02:58.9]} 5. Nge2 {[%clk 0:02:56.3]}
5... Be7 {[%clk 0:02:58.9]} 6. Be3 {[%clk 0:02:55.9]} 6... O-O {[%clk
0:02:58.8]} 7. Qd2 {[%clk 0:02:51.8]} 7... a6 {[%clk 0:02:58.5]} 8. O-O-O {[%clk
0:02:51.3]} 8... b5 {[%clk 0:02:58.9]} 9. dxe5 {[%clk 0:02:51.9]} 9... dxe5
{[%clk 0:02:58.2]} 10. Nd5 {[%clk 0:02:50.4]} 10... Nxd5 {[%clk 0:02:53.3]} 11.
exd5 {[%clk 0:02:50.4]} 11... Nb8 {[%clk 0:02:48.6]} 12. g4 {[%clk 0:02:34.9]}
12... Bb7 {[%clk 0:02:40.5]} 13. f4 {[%clk 0:02:28.2]} 13... exf4 {[%clk
0:02:38]} 14. Nxf4 {[%clk 0:02:25.8]} 14... Nd7 {[%clk 0:02:28.8]} 15. Bg2
{[%clk 0:02:25.8]} 15... Nf6 {[%clk 0:02:07.4]} 16. d6 {[%clk 0:02:10.8]} 16...
Bxg2 {[%clk 0:01:34.1]} 17. dxe7 {[%clk 0:02:10.5]} 17... Qxe7 {[%clk
0:01:33.1]} 18. Nxg2 {[%clk 0:02:07.4]} 18... Nxg4 {[%clk 0:01:32.8]} 19. Bf4
{[%clk 0:01:52.6]} 19... Rad8 {[%clk 0:01:30.6]} 20. Qe1 {[%clk 0:01:23.7]}
20... Rxd1+ {[%clk 0:01:23.2]} 21. Qxd1 {[%clk 0:01:18.2]} 21... Nf2 {[%clk
0:01:21.3]} 22. Re1 {[%clk 0:01:02.7]} 22... Qf6 {[%clk 0:01:09.8]} 23. Qf3
{[%clk 0:00:55.9]} 23... g5 {[%clk 0:01:02.3]} 24. Qxf2 {[%clk 0:00:55.2]} 24...
gxf4 {[%clk 0:01:02.1]} 25. Qxf4 {[%clk 0:00:55.7]} 25... Qc6 {[%clk 0:00:53.5]}
26. Nh4 {[%clk 0:00:51.6]} 26... Kh8 {[%clk 0:00:43.4]} 27. Nf5 {[%clk
0:00:47.1]} 27... Qg6 {[%clk 0:00:30.7]} 28. Qe5+ {[%clk 0:00:37.4]} 28... f6
{[%clk 0:00:30.1]} 29. Qc5 {[%clk 0:00:28.6]} 29... Rg8 {[%clk 0:00:22.3]} 30.
b3 {[%clk 0:00:27.9]} 30... Qh5 {[%clk 0:00:14.2]} 31. Qf2 {[%clk 0:00:24.8]}
31... Rg5 {[%clk 0:00:10.7]} 32. Ng3 {[%clk 0:00:23.8]} 32... Qg6 {[%clk
0:00:09.7]} 33. Kb2 {[%clk 0:00:24.3]} 33... f5 {[%clk 0:00:08.7]} 34. Qd4+
{[%clk 0:00:23.8]} 34... Kg8 {[%clk 0:00:08.2]} 35. Qd8+ {[%clk 0:00:23.2]}
35... Kg7 {[%clk 0:00:07.2]} 36. Qe7+ {[%clk 0:00:22.8]} 36... Kh6 {[%clk
0:00:07.5]} 37. Re6 {[%clk 0:00:22.2]} 37... Rxg3 {[%clk 0:00:06.4]} 38. hxg3
{[%clk 0:00:21.5]} 1-0

[Event "Late-Titled-Tuesday-Blitz-April-30-2024"]
[Site "Chess.com"]
[Date "2024.04.30"]
[Round "1"]
[White "DenisQ"]
[Black "EvilMorty23"]
[Result "1-0"]
[WhiteElo "2718"]
[BlackElo "2415"]
[TimeControl "180+1"]
[EndTime "14:07:21 PDT"]
[Termination "DenisQ won by checkmate"]

1. Nf3 {[%clk 0:03:00.9]} 1... Nf6 {[%clk 0:02:59.3]} 2. c4 {[%clk 0:03:00.4]}
2... e6 {[%clk 0:02:58.9]} 3. g3 {[%clk 0:02:57.6]} 3... d5 {[%clk 0:02:58.3]}
4. Bg2 {[%clk 0:02:58.2]} 4... Be7 {[%clk 0:00:16.8]} 5. O-O {[%clk 0:01:56.1]}
5... O-O {[%clk 0:00:17.7]} 6. b3 {[%clk 0:01:54.6]} 6... c6 {[%clk 0:00:18.6]}
7. Bb2 {[%clk 0:01:54.4]} 7... Nbd7 {[%clk 0:00:19.5]} 8. Nc3 {[%clk 0:01:52.5]}
8... b6 {[%clk 0:00:19.8]} 9. Qc2 {[%clk 0:01:52.3]} 9... Bb7 {[%clk 0:00:20.1]}
10. d4 {[%clk 0:01:51.8]} 10... Rc8 {[%clk 0:00:20.2]} 11. e4 {[%clk 0:01:50.6]}
11... dxe4 {[%clk 0:00:19.9]} 12. Nxe4 {[%clk 0:01:50.2]} 12... Nxe4 {[%clk
0:00:20.8]} 13. Qxe4 {[%clk 0:01:49.8]} 13... Nf6 {[%clk 0:00:21]} 14. Qc2
{[%clk 0:01:49.8]} 14... c5 {[%clk 0:00:21.1]} 15. dxc5 {[%clk 0:01:49.5]} 15...
bxc5 {[%clk 0:00:19.2]} 16. Ng5 {[%clk 0:01:48.6]} 16... Bxg2 {[%clk 0:00:16.9]}
17. Bxf6 {[%clk 0:01:48.5]} 17... g6 {[%clk 0:00:16.4]} 18. Nxe6 {[%clk
0:01:42.2]} 18... fxe6 {[%clk 0:00:14.8]} 19. Bxe7 {[%clk 0:01:42.1]} 19... Qxe7
{[%clk 0:00:15.5]} 20. Kxg2 {[%clk 0:01:42.2]} 20... Qb7+ {[%clk 0:00:15.2]} 21.
f3 {[%clk 0:01:41.7]} 21... Rcd8 {[%clk 0:00:14.9]} 22. Rae1 {[%clk 0:01:40.5]}
22... Rd4 {[%clk 0:00:14.3]} 23. Rxe6 {[%clk 0:01:38]} 23... Qd7 {[%clk
0:00:14.1]} 24. Re2 {[%clk 0:01:37.4]} 24... Rd3 {[%clk 0:00:13.6]} 25. Rff2
{[%clk 0:01:32.1]} 25... Qf5 {[%clk 0:00:13]} 26. Re7 {[%clk 0:01:15.2]} 26...
Rfd8 {[%clk 0:00:10.2]} 27. Rxa7 {[%clk 0:01:05.8]} 27... h5 {[%clk 0:00:08.8]}
28. Qe2 {[%clk 0:01:02]} 28... h4 {[%clk 0:00:07.3]} 29. g4 {[%clk 0:00:55.2]}
29... Qf4 {[%clk 0:00:00.9]} 30. Qe6+ {[%clk 0:00:45.2]} 30... Kh8 {[%clk
0:00:01.6]} 31. Rf7 {[%clk 0:00:40.6]} 31... h3+ {[%clk 0:00:02.5]} 32. Kxh3
{[%clk 0:00:40.4]} 32... Qh6+ {[%clk 0:00:02.4]} 33. Kg2 {[%clk 0:00:40]} 33...
Rd2 {[%clk 0:00:03.3]} 34. Kg3 {[%clk 0:00:19.3]} 34... Kg8 {[%clk 0:00:04.2]}
35. Rd7+ {[%clk 0:00:16.9]} 35... Kh8 {[%clk 0:00:03.6]} 36. Qf6+ {[%clk
0:00:14.8]} 36... Kg8 {[%clk 0:00:03.6]} 37. Qxd8+ {[%clk 0:00:14.3]} 37... Qf8
{[%clk 0:00:03.9]} 38. Qxf8+ {[%clk 0:00:14.2]} 38... Kxf8 {[%clk 0:00:04.8]}
39. Rfxd2 {[%clk 0:00:14.4]} 39... g5 {[%clk 0:00:03.6]} 40. Ra7 {[%clk
0:00:14.9]} 40... Ke8 {[%clk 0:00:03]} 41. Rd5 {[%clk 0:00:15.2]} 41... Kf8
{[%clk 0:00:03.3]} 42. Rd8# {[%clk 0:00:15.4]} 1-0